Cogmind - Beta 13 @@@ ROGUE MODE // 2024.04.14 @ 04:22:51 Player: Ozmotoz Result: Self-destructed Performance ------------- Evolutions (4) 2000 Regions Visited (5) 1000 Robots Destroyed (67) 335 Value Destroyed (2238) 2238 Prototype IDs (8) 160 Alien Tech Used (0) 0 Bonus (0) 0 TOTAL SCORE: 5733 Bonus ------- None Cogmind --------- Core Integrity 667/850 Matter 44/300 Energy 6/100 System Corruption 4% Temperature Cool (0) Movement Treading (152) Location -6/Factory Parts ------- > --- POWER (1) -------- (None) > --- PROPULSION (4) --- Advanced Treads Medium Treads > --- UTILITY (6) ------ Improved Heat Sink Large Storage Unit Targeting Computer Target Analyzer Transmission Jammer > --- WEAPON (4) ------- Advanced Assault Cannon Mini Assault Cannon > --- INVENTORY (15) --- Fusion Compressor Armored Treads Armored Treads Improved Heat Sink Coolant Injector High-capacity Matter Pod (184) Advanced Sensor Array Kinecellerator Improved Shield Generator Hacking Suite Improved Field Recycling Unit (0) Hypervelocity Gauss Cannon Remote Datajack Peak State ------------ > --- POWER ------------ Fission Core > --- PROPULSION ------- Armored Treads Armored Treads Advanced Treads Advanced Treads > --- UTILITY ---------- Improved Heat Sink Large Storage Unit Targeting Computer Target Analyzer Transmission Jammer Improved Medium Armor Plating > --- WEAPON ----------- Gauss Rifle Mini Assault Cannon Hypervelocity Gauss Cannon Hypervelocity Gauss Cannon > --- INVENTORY -------- Improved Deuterium Engine Armored Treads Armored Treads Armored Treads Improved Heat Sink Coolant Injector High-capacity Matter Pod Advanced Sensor Array Kinecellerator Improved Shield Generator Hacking Suite Improved Field Recycling Unit Flak Gun Advanced Assault Cannon Remote Datajack [Rating: 59] Favorites ----------- Power Ion Engine Engine Ion Engine Power Core Fission Core Propulsion Armored Treads Treads Armored Treads Leg Aluminum Leg Utility Large Storage Unit Device Improved Heat Sink Storage Large Storage Unit Processor Targeting Computer Protection Improved Medium Armor Plating Weapon Flak Gun Energy Gun Spread Laser Ballistic Gun Flak Gun Ballistic Cannon Hypervelocity Gauss Cannon Build | -11 -10 -9 -8 -7 -6 ------- Run | Yrd Mat Mat Mat Fac Fac Slots Evolved 8 | . . 2 2 2 2 Power . | . . . . . . Propulsion 2 | . . 1 . . 1 Utility 4 | . . . 1 2 1 Weapon 2 | . . 1 1 . . Parts Attached 64 | 6 3 11 6 19 19 Power 6 | 1 . 1 1 2 1 Engine 4 | 1 . 1 1 1 . Core 2 | . . . . 1 1 Reactor . | . . . . . . Propulsion 17 | 2 . 4 . 3 8 Treads 14 | . . 3 . 3 8 Leg 3 | 2 . 1 . . . Wheel . | . . . . . . Hover . | . . . . . . Flight . | . . . . . . Utility 20 | 1 2 2 2 7 6 Device 11 | . 1 1 1 5 3 Storage 2 | 1 1 . . . . Processor 2 | . . . 1 1 . Hackware . | . . . . . . Protection 5 | . . 1 . 1 3 Artifact . | . . . . . . Weapon 21 | 2 1 4 3 7 4 Energy Gun 3 | . . 2 1 . . Energy Cannon . | . . . . . . Ballistic Gun 10 | 2 1 1 2 3 1 Ballistic Cannon 8 | . . 1 . 4 3 Launcher . | . . . . . . Special Weapon . | . . . . . . Impact Weapon . | . . . . . . Slashing Weapon . | . . . . . . Piercing Weapon . | . . . . . . Special Melee Weapon . | . . . . . . Unidentified Prototypes 1 | . . . . . 1 Parts Lost 10 | . . 1 . 1 8 Power 1 | . . . . . 1 Propulsion 4 | . . 1 . . 3 Utility 2 | . . . . 1 1 Weapon 3 | . . . . . 3 Highest Loss Streak 8 | . . 1 . 1 8 To Critical Strikes . | . . . . . . Average Slot Usage (%) 99 | . 98 98 99 99 99 Engine 7 | . 14 11 9 6 . Core 1 | . . . . . 5 Treads 17 | . . 9 27 23 25 Leg 8 | . 28 22 . . . Device 13 | . 12 7 8 17 13 Storage 8 | . 14 11 9 7 6 Processor 7 | . . . 9 9 13 Protection 2 | . . 3 . 2 5 Energy Gun 4 | . . 20 17 1 . Ballistic Gun 16 | . 28 2 13 17 12 Ballistic Cannon 8 | . . 9 4 10 13 Naked Turns . | . . . . . . Heaviest Build 72 | 12 28 36 44 71 72 Greatest Support 84 | 20 20 63 63 63 84 Greatest Overweight (x) 1 | . 1 1 . 1 . Average Overweight (x) . | . . . . . . Largest Inventory Capacity 15 | 8 15 15 15 15 15 Average Capacity 14 | 7 14 15 15 15 15 Most Carried 15 | 2 10 15 15 15 15 Average Carried 12 | . 5 13 14 14 14 Final Capacity 15 | 8 15 15 15 15 15 Final Carried 15 | . 10 14 15 15 13 Class Distribution -------------------- 76% | Gunner 19% | Mutant 4% | Tank Dominant Class ---------------- Mutant | -10/Materials Gunner | -9/Materials Gunner | -8/Materials Gunner | -7/Factory Gunner | -6/Factory Resources | -11 -10 -9 -8 -7 -6 ----------- Run | Yrd Mat Mat Mat Fac Fac Matter Collected 2306 | 220 161 257 260 947 461 Remotely . | . . . . . . Salvage Created 2229 | . 245 385 360 688 551 Parts 112 | . 21 22 14 32 23 Haulers Intercepted 4 | . 1 . 1 1 1 Recyclers Shooed 3 | . . 2 . . 1 Parts Field Recycled 30 | . . . . 6 24 Retrieved Matter 279 | . . . . 45 234 Parts Self-Destructed . | . . . . . . Prevented . | . . . . . . Kills | -11 -10 -9 -8 -7 -6 ------- Run | Yrd Mat Mat Mat Fac Fac Combat Hostiles Destroyed 52 | . 5 13 9 15 10 Guns 30 | . 5 11 5 9 . Cannons 22 | . . 2 4 6 10 Classes Destroyed 11 | . 5 2 . 3 1 Worker 4 | . . 1 . 1 2 Builder 1 | . . . . 1 . Hauler 4 | . 1 . 1 1 1 Recycler 5 | . 1 3 . 1 . Operator 1 | . 1 . . . . Swarmer 11 | . 3 8 . . . Grunt 26 | . 2 2 8 9 5 Duelist 1 | . . . . 1 . Sentry 7 | . . 3 1 2 1 Hunter 1 | . . . . . 1 Programmer 6 | . . . . 3 3 Best Kill Streak 8 | . 4 8 4 3 3 Combat Bots Only 6 | . 3 6 4 3 3 Max Kills in Single Turn 2 | . 1 1 1 2 1 Gunslinging . | . . . . . . Exploded . | . . . . . . Melee . | . . . . . . Uniques/NPCs Destroyed . | . . . . . . Combat | -11 -10 -9 -8 -7 -6 -------- Run | Yrd Mat Mat Mat Fac Fac Hostile Shots Fired 401 | . 39 64 21 81 196 Missed 112 | . 7 21 1 26 57 Damage Taken 4197 | . 271 417 315 693 2501 Core 402 | . 59 58 30 72 183 Absorbed by Shields . | . . . . . . Redirected to Shielding 14 | . . 14 . . . Core Remaining (%) 88 | 100 76 85 94 89 . Volleys Fired 147 | . 40 29 17 28 33 Largest 4 | . 2 3 4 4 4 Hottest 192 | . 40 169 192 178 178 Shots Fired 477 | . 80 86 68 112 131 Gun 322 | . 80 57 54 66 65 Cannon 155 | . . 29 14 46 66 Launcher . | . . . . . . Special . | . . . . . . Kinetic 386 | . 80 29 34 112 131 Thermal 91 | . . 57 34 . . Explosive . | . . . . . . Electromagnetic . | . . . . . . Robot Hit Streak 22 | . 9 9 22 15 11 Robot Miss Streak 10 | . 4 10 10 5 8 Penetration Max 1 | . . . . 1 1 Secondary Targets . | . . . . . . Shots Hit Robots 328 | . 53 62 55 69 89 Core Hits 284 | . 21 64 63 79 57 Critical Kills 12 | . 1 . . 3 8 Critical Parts Destroyed 13 | . . . . 4 9 Critical Strikes 28 | . 1 . . 10 17 Destroy 25 | . 1 . . 7 17 Blast 3 | . . . . 3 . Melee Attacks . | . . . . . . Impact . | . . . . . . Slashing . | . . . . . . Piercing . | . . . . . . Sneak Attacks . | . . . . . . Combat Hostiles . | . . . . . . Follow-up Attacks . | . . . . . . Damage Inflicted 5318 | . 433 823 947 1490 1625 Guns 3703 | . 428 564 778 1044 889 Cannons 1537 | . . 256 169 394 718 Explosions . | . . . . . . Melee . | . . . . . . Ramming 78 | . 5 3 . 52 18 Kinetic 4135 | . 428 256 406 1438 1607 Thermal 1105 | . . 564 541 . . Explosive . | . . . . . . Electromagnetic . | . . . . . . Impact . | . . . . . . Slashing . | . . . . . . Piercing . | . . . . . . Highest Corruption 4 | . . . . 1 4 Average Corruption 1 | . . . . 1 1 Corruption Purged . | . . . . . . Corruption Blocked . | . . . . . . Effects 4 | . . . . 2 2 Message Errors 2 | . . . . 2 . Heat Flow Errors 1 | . . . . . 1 Energy Discharges 1 | . . . . . 1 Overload Shots . | . . . . . . Overflow Damage 34 | . . 4 . 2 28 Projectiles 34 | . . 4 . 2 28 Explosions . | . . . . . . Melee . | . . . . . . Knockbacks 19 | . . 2 2 6 9 Impact . | . . . . . . Kinetic 18 | . . 2 2 5 9 Secondary 1 | . . . . 1 . Self-Inflicted Damage . | . . . . . . Shots . | . . . . . . Rammed 6 | . . . . 5 1 Targets Rammed 9 | . 2 1 . 5 1 Kicked 2 | . 2 . . . . Crushed 1 | . . 1 . . . Highest Temperature 533 | . 12 533 404 159 287 Average Temperature 103 | . 8 155 130 47 66 Received Heat Transfer 744 | . 54 111 171 219 189 Effects 5 | . . 5 . . . Shutdowns 2 | . . 2 . . . Energy Bleed 1 | . . 1 . . . Interference 1 | . . 1 . . . Matter Decay 1 | . . 1 . . . Siege Activations . | . . . . . . Robots Corrupted . | . . . . . . Combat Hostiles . | . . . . . . Parts Fried . | . . . . . . Impact Corruptions . | . . . . . . Robots Melted . | . . . . . . Combat Hostiles . | . . . . . . Parts Melted 1 | . . 1 . . . Heat Transferred 1395 | . . 715 680 . . Parts Sabotaged . | . . . . . . Parts Stolen . | . . . . . . Parts Stripped . | . . . . . . Power Chain Reactions . | . . . . . . Alert | -11 -10 -9 -8 -7 -6 ------- Run | Yrd Mat Mat Mat Fac Fac Peak Influence 259 | . 122 186 259 174 220 Initial 32 | . . 20 . 26 32 Average 68 | . 45 74 122 62 79 Maximum Alert Level 1 | . . . 1 . 1 Low Security (%) 95 | 100 100 100 69 100 89 Level 1 4 | . . . 30 . 10 Level 2 . | . . . . . . Level 3 . | . . . . . . Level 4 . | . . . . . . Level 5 . | . . . . . . High Security . | . . . . . . Max Security . | . . . . . . Squads Dispatched 11 | . 1 . 1 6 3 Investigation 3 | . 1 . . 2 . Extermination 5 | . . . . 4 1 Reinforcement 3 | . . . 1 . 2 Assault . | . . . . . . Garrison . | . . . . . . Intercept . | . . . . . . Searches Triggered . | . . . . . . Construction Impeded 1 | . . . 1 . . Haulers Reinforced 1 | . . . . . 1 Active Scanning Responses . | . . . . . . Cargo Convoy Interrupts 1 | . . . . . 1 Stealth | -11 -10 -9 -8 -7 -6 --------- Run | Yrd Mat Mat Mat Fac Fac Distress Signals 2 | . . . . 2 . Communications Jammed 36 | . . . . 3 33 Distress Signals 36 | . . . . 3 33 Times Spotted 99 | . 13 22 10 23 31 Peak Tracking Total 12 | . 4 7 4 3 12 Tactical Retreats 6 | . . . . 3 3 Traps | -11 -10 -9 -8 -7 -6 ------- Run | Yrd Mat Mat Mat Fac Fac Traps Triggered 2 | . . . . 2 . Indirectly . | . . . . . . Trap Hack Attempts . | . . . . . . Triggered . | . . . . . . Disarmed . | . . . . . . Reprogrammed . | . . . . . . Reused . | . . . . . . Traps Extracted . | . . . . . . Installed . | . . . . . . Triggered . | . . . . . . Machines | -11 -10 -9 -8 -7 -6 ---------- Run | Yrd Mat Mat Mat Fac Fac Machines Disabled 3 | . . . 1 1 1 Max in Single Turn 1 | . . . 1 1 1 Machines Repaired . | . . . . . . Machines Dismantled . | . . . . . . Machines Sabotaged . | . . . . . . Overloaded Fab Kills . | . . . . . . Hacking | -11 -10 -9 -8 -7 -6 --------- Run | Yrd Mat Mat Mat Fac Fac Machines Accessed 16 | . 3 3 1 8 1 Terminals 13 | . 3 3 1 5 1 Fabricators 1 | . . . . 1 . Repair Stations . | . . . . . . Recycling Units . | . . . . . . Scanalyzers 2 | . . . . 2 . Garrison Access . | . . . . . . Total Hacks 37 | . 6 8 2 19 2 Successful 19 | . 3 7 . 8 1 Failed 18 | . 3 1 2 11 1 Catastrophic 3 | . 1 . 1 1 . Database Lockouts . | . . . . . . Manual . | . . . . . . Terminals 30 | . 6 8 2 12 2 Fabricators 3 | . . . . 3 . Repair Stations . | . . . . . . Recycling Units . | . . . . . . Scanalyzers 4 | . . . . 4 . Garrison Access . | . . . . . . Terminal Hacks 15 | . 3 7 . 4 1 Record 5 | . . 3 . 2 . Part Schematic 1 | . . . . 1 . Prototype ID Bank 4 | . 2 2 . . . Unreport Threat 3 | . 1 1 . 1 . Recall Investigation 1 | . . . . . 1 Hauler Manifests 1 | . . 1 . . . Fabricator Hacks 2 | . . . . 2 . Load Schematic 1 | . . . . 1 . Build 1 | . . . . 1 . Repair Station Hacks . | . . . . . . Recycling Unit Hacks . | . . . . . . Scanalyzer 2 | . . . . 2 . Insert Component 1 | . . . . 1 . Analyze 1 | . . . . 1 . Garrison Access Hacks . | . . . . . . Unauthorized Hacks . | . . . . . . Terminals . | . . . . . . Fabricators . | . . . . . . Repair Stations . | . . . . . . Recycling Units . | . . . . . . Scanalyzers . | . . . . . . Garrison Access . | . . . . . . Data Cores Recovered 1 | . 1 . . . . Used . | . . . . . . Hacking Detections 15 | . 3 2 1 8 1 Full Trace Events 3 | . 1 . . 2 . Feedback Events . | . . . . . . Feedback Blocked . | . . . . . . Robot Schematics Acquired . | . . . . . . Robots Built . | . . . . . . Authchips . | . . . . . . Time . | . . . . . . Total Robot Build Rating . | . . . . . . Part Schematics Acquired 2 | . . . . 2 . Parts Built 2 | . . . . 2 . Authchips . | . . . . . . Time 106 | . . . . 106 . Total Part Build Rating 12 | . . . . 12 . Parts Repaired . | . . . . . . Time . | . . . . . . Parts Recycled . | . . . . . . Recycled Matter . | . . . . . . Retrieved Matter . | . . . . . . Retrieved Components . | . . . . . . Parts Scanalyzed 1 | . . . . 1 . Part Schematics Acquired 1 | . . . . 1 . Parts Damaged . | . . . . . . Bothacking | -11 -10 -9 -8 -7 -6 ------------ Run | Yrd Mat Mat Mat Fac Fac Used RIF Installer . | . . . . . . Robots Hacked . | . . . . . . Non-combat . | . . . . . . Combat . | . . . . . . Robot Hacks Applied . | . . . . . . Relay Couplers Released . | . . . . . . Fabnet Peak Effective % . | . . . . . . Robots Rewired . | . . . . . . Allies Hacked . | . . . . . . Hacks Repelled . | . . . . . . Allies | -11 -10 -9 -8 -7 -6 -------- Run | Yrd Mat Mat Mat Fac Fac Total Allies . | . . . . . . Largest Group . | . . . . . . Highest-Rated Group . | . . . . . . Highest-Rated Ally . | . . . . . . Total Orders . | . . . . . . Ally Attacks . | . . . . . . Total Damage . | . . . . . . Kills . | . . . . . . Allies Corrupted . | . . . . . . Allies Melted . | . . . . . . Intel | -11 -10 -9 -8 -7 -6 ------- Run | Yrd Mat Mat Mat Fac Fac Robot Analysis Total . | . . . . . . Derelict Logs Recovered . | . . . . . . Drone Launches . | . . . . . . Drone Recoveries . | . . . . . . Exploration | -11 -10 -9 -8 -7 -6 ------------- Run | Yrd Mat Mat Mat Fac Fac Turns Passed 6131 | 75 1094 809 535 2551 1067 Spaces Moved 3019 | 57 514 365 231 1294 558 Core 6 | 6 . . . . . Treads 2211 | . . 128 231 1294 558 Legs 802 | 51 514 237 . . . Wheels . | . . . . . . Hover . | . . . . . . Flight . | . . . . . . Fastest Speed 50 | 50 120 120 160 160 157 Average Speed 169 | 112 187 177 160 169 158 Slowest Speed 250 | 120 190 190 160 250 170 Overloaded Moves . | . . . . . . Propulsion Burnouts . | . . . . . . Robots Hopped . | . . . . . . Cave-ins Triggered . | . . . . . . Exploration Rate (%) 23 | 5 52 32 21 25 6 Regions Visited 5 Branch Regions . Pre-discovered Areas . | . . . . . . Known Exits Taken . | . . . . . . Unknown Exits Taken 5 | 1 1 1 1 1 . Scrap Searched . | . . . . . . Spaces Dug . | . . . . . . Terrain Destroyed 10 | . . . . 6 4 Melee . | . . . . . . Projectile 10 | . . . . 6 4 AOE . | . . . . . . Terrain Rammed . | . . . . . . Walls Destroyed . | . . . . . . Machines Disabled . | . . . . . . Actions | -11 -10 -9 -8 -7 -6 --------- Run | Yrd Mat Mat Mat Fac Fac Total 3715 | 68 581 458 361 1593 654 Wait 343 | . 9 38 70 190 36 Move 3014 | 56 513 364 230 1293 558 Hop . | . . . . . . Pick Up 82 | 6 12 11 21 28 4 Fast Attach 1 | . . . . 1 . Attach 21 | 6 2 3 3 3 4 Detach 1 | . 1 . . . . Swap 42 | . 1 8 3 15 15 Drop 55 | . 1 4 17 30 3 Fire 147 | . 40 29 17 28 33 Melee . | . . . . . . Ram . | . . . . . . Kick 2 | . 2 . . . . Crush 7 | . . 1 . 5 1 Escape Stasis . | . . . . . . Rewire . | . . . . . . Trap . | . . . . . . Miscellaneous . | . . . . . . Route ------- -11/Scrapyard -10/Materials -9/Materials -8/Materials -7/Factory -6/Factory History --------- Turn | Location | Event 18 | -11/Scrapyard | Discovered new exit (range 15) 76 | -11/Scrapyard | Entered Materials 304 | -10/Materials | Build established: Mutant 1065 | -10/Materials | Discovered new exit (range 11) 1170 | -10/Materials | Entered another Materials area 1170 | -9/Materials | Evolved 2 slots: Propulsion x1, Weapon x1 1734 | -9/Materials | Build established: Gunner 1913 | -9/Materials | Discovered new exit (range 15) 1979 | -9/Materials | Entered another Materials area 1979 | -8/Materials | Evolved 2 slots: Utility x1, Weapon x1 2424 | -8/Materials | Discovered new exit (range 6) 2514 | -8/Materials | Entered Factory 2514 | -7/Factory | Evolved 2 slots: Utility x2 4176 | -7/Factory | Fabricated Hyp. Gauss Cannon (x2) 4878 | -7/Factory | Discovered new exit (range 16) 5065 | -7/Factory | Entered another Factory area 5065 | -6/Factory | Evolved 2 slots: Propulsion x1, Utility x1 6104 | -6/Factory | Cargo convoy interrupted 6132 | -6/Factory | Self-destructed Last Messages --------------- I-36 Angel distress signal jammed. P-60 Hacker knocked back. Arm. Treads destroyed. K-01 Serf collects debris. Penetrated by Slug. I-36 Angel distress signal jammed. Slug penetrates Wall. Penetrated by Slug. Slug penetrates Construction Platform. I-36 Angel destroyed. Penetrated by Slug. Adv. Treads destroyed. Penetrated by Slug. K-01 Serf collects debris. Slug penetrates Wall. M-28 Smith destroyed. Arm. Treads destroyed. Penetrated by Slug. Flak Gun destroyed. Penetrated by Slug. Map ----- +----------------------------------------------------+ | ?????????????????????????????????????????????????? | | ?????????????????????????????????????????????????? | | ?????????????????????????????????????????????????? | | ?????????????????????????????????????????????????? | | ?????????????????????????????????????????????????? | | ?????????????????????????????????????????????????? | | ?????????????????????????????????????????????????? | | ?????????????????????????????????????????????????? | | ?????????????????????????????????????????????????? | | ?????????????????????????????????????????????????? | | ???????###+######+##?###+####????????????????????? | | ???????# ? "?????????????????????? | | ???????# #?????????????????????? | | ???????# #?????????????????????? | | ???##### ? +?????????????????????? | | ???? ? #?????????????????????? | | ?????###""#+########## #?????????????????????? | | ?????# = " # A o#?????????????????????? | | ?????# ! " # #?????????????????????? | | ?????# = * " ##^! ^#?????????????????????? | | ?????# = # #%!! #?????????????????????? | | ?????# * # #!*^ #??########???????????? | | ?????###"########## # #? ! ???????????? | | ???????#" # ^*%# x ?????????????? | | ???????#" " # !; """"???????????????? | | ???????## " ; @%;x """"???????????????? | | ????????# " # #h """" ??????????????? | | ???????# " # % %h% """" ??????????????? | | ???????## " ; h/p """" ??????????????? | | ????????# " !! # !% """" ??????????????? | | ????????# " # % ; """"???????????????? | | ????????# " # # % ??????????????? | | ????????# " # # % ?????????????? | | ????????# #^ ^^ # ?????????????? | | ????????# ! # #########/????????????? | | ????????############## #?????????????????????? | | ?????????????????????# #?????????????????????? | | #????????????????????# #?????????????????????? | | #?????############### k p###########???????????? | | ?????#+ ## | ???????? | | ?????##### ## ???????? | | ###??????# ## ???????? | | ##???###+## ????????? | | #???# # ????????? | | #???# "" # "###################?????????? | | ###+###### "" # ##???????????????????????????? | | # + "" # #????????????????????????????? | | # # "Y # #????????????????????????????? | | # # "" # #????????????????????????????? | | " # "" # #????????????????????????????? | +----------------------------------------------------+ Best States ------------- Heat Dissipation 51 Coolant Potential 50 Energy Generation 18 Energy Capacity 310 Matter Stores 300 Matter Capacity 300 Sight Range 16 Robot Scan Range 16 Terrain Scan Density 10 Jamming Range 12 Armor Coverage 225 Propulsion Shielding 33 Evasion (%) 55 Targeting Accuracy 5 Target Analysis 5 Recoil Reduction 7 Item Schematics ----------------- Adv. Treads | -7/Factory | Scanalyzed Hyp. Gauss Cannon | -7/Factory | Hacked Robot Schematics ------------------ None Fabricated ------------ Hyp. Gauss Cannon | x2 | -7/Factory Alien Tech Used ----------------- None Achievements -------------- No Signal Total Silence Challenges ------------ None Game ------ Seed InsulatedSeismicSegregator Manual? 0 Play Time 01:02:50 Cumulative 13.2 hours Start 2024.04.14 @ 03:18:22 End 2024.04.14 @ 04:22:51 Sessions 1 Manual Loads 0 Difficulty Rogue Special Mode None Game No. 31 Rogue 31 Adventurer 0 Explorer 0 Win Type - Total 0 Types 0/0/0/0/0/0/0/0/0 Lore% 16 Gallery% 15 Achievement% 12 Wizard Run 0 Options --------- Layout 2 ASCII 0 Keyboard 0 Movement Mouse Keybinds 0 Fullscreen 2 Font 24/Proggy Map View 50x44 Zoom Use 0% Tactical HUD 0 Map Filters NONE Filters NONE Steam 1 RUN: 091d0e98-b6f1-4720-a51e-353849e5e559